fUSD/lending_fUSD_20240119
["ID","MTS","AMOUNT","RATE_DAILY","PERIOD"]
[312212210,1705686664027,-500.0,0.00026301,2]
[312212211,1705686664035,-1821.35,0.00026301,2]
[312212212,1705686664045,-500.0,0.00026301,2]
[312212213,1705686664055,-500.0,0.00026301,2]
[312212214,1705686664065,-2515.39,0.00026301,2]
[312212215,1705686664076,-500.0,0.00026301,2]
[312212216,1705686664085,-579.57,0.00026301,2]
[312212217,1705686664095,-358.72,0.00026301,2]
[312212218,1705686664105,-789.05,0.00026301,2]
[312212219,1705686664115,-1481.48,0.00026301,2]
[312212220,1705686664124,-500.0,0.00026301,2]
[312212221,1705686664135,-500.0,0.00026301,2]
[312212222,1705686664144,-694.61,0.00026301,2]
[312212223,1705686664154,-500.0,0.00026301,2]
[312212224,1705686664163,-767.99,0.00026301,2]
[312212225,1705686664173,-305.99,0.00026301,2]
[312212226,1705686664183,-704.29,0.00026301,2]
[312212227,1705686664197,-500.0,0.00026301,2]
[312212228,1705686664207,-500.0,0.00026301,2]
[312212229,1705686664217,-500.0,0.00026301,2]
[312212230,1705686664226,-500.0,0.00026301,2]
[312212231,1705686664237,-1105.0,0.00026301,2]
[312212232,1705686664247,-500.0,0.00026301,2]
[312212233,1705686664258,-500.0,0.00026301,2]
[312212234,1705686664270,-1937.21,0.00026301,2]
[312212235,1705686664279,-361.2,0.00026301,2]
[312212236,1705686664290,-802.6,0.00026301,2]
[312212237,1705686664300,-565.57,0.00026301,2]
[312212238,1705686664311,-1124.46,0.00026301,2]
[312212239,1705686664321,-500.0,0.00026301,2]
[312212240,1705686664332,-1388.65,0.00026301,2]
[312212241,1705686664342,-183.04,0.00026301,2]
[312212242,1705686664352,-500.0,0.00026301,2]
[312212243,1705686664362,-500.0,0.00026301,2]
[312212244,1705686664372,-500.0,0.00026301,2]
[312212245,1705686664382,-3080.21,0.00026301,2]
[312212246,1705686664392,-2102.34,0.00026301,2]
[312212247,1705686664402,-179.01242334,0.00026426,2]
[312212248,1705686664411,-500.0,0.00026574,2]
[312212249,1705686664420,-500.0,0.00026575,2]
[312212250,1705686664429,-500.0,0.00026575,2]
[312212251,1705686664439,-500.0,0.00026575,2]
[312212252,1705686664448,-500.0,0.00026575,2]
[312212253,1705686664458,-163.89,0.00026575,2]
[312212254,1705686664467,-500.0,0.00026575,2]
[312212255,1705686664477,-1692.61,0.00026575,2]
[312212256,1705686664487,-500.0,0.00026575,2]
[312212257,1705686664497,-153.66,0.00026575,2]
[312212258,1705686664507,-500.0,0.00026575,2]
[312212259,1705686664522,-500.0,0.00026575,2]
[312212260,1705686664531,-500.0,0.00026575,2]
[312212261,1705686664541,-537.45,0.00026575,2]
[312212262,1705686664552,-500.0,0.00026575,2]
[312212263,1705686664562,-500.0,0.00026575,2]
[312212264,1705686664572,-500.0,0.00026575,2]
[312212265,1705686664581,-577.97,0.00026575,2]
[312212266,1705686664591,-500.0,0.00026575,2]
[312212267,1705686664601,-612.78,0.00026575,2]
[312212268,1705686664611,-676.46,0.00026575,2]
[312212269,1705686664620,-683.83,0.00026575,2]
[312212270,1705686664630,-500.0,0.00026575,2]
[312212271,1705686664639,-548.83,0.00026575,2]
[312212272,1705686664648,-500.0,0.00026575,2]
[312212273,1705686664657,-319.54,0.00026575,2]
[312212274,1705686664666,-500.0,0.00026575,2]
[312212275,1705686664675,-500.0,0.00026575,2]
[312212276,1705686664685,-500.0,0.00026575,2]
[312212277,1705686664694,-500.0,0.00026575,2]
[312212278,1705686664704,-233.52,0.00026575,2]
[312212279,1705686664713,-500.0,0.00026575,2]
[312212280,1705686664722,-500.0,0.00026575,2]
[312212281,1705686664732,-500.0,0.00026575,2]
[312212282,1705686664741,-500.0,0.00026575,2]
[312212283,1705686664750,-559.97445914,0.00026575,2]
[312212284,1705686664759,-851.92,0.00026575,2]
[312212285,1705686664772,-500.0,0.00026575,2]
[312212286,1705686664781,-1965.01,0.00026575,2]
[312212287,1705686664790,-607.77,0.00026575,2]
[312212288,1705686664800,-1613.64,0.00026575,2]
[312212289,1705686664810,-161.1,0.00026575,2]
[312212290,1705686664820,-1700.28,0.00026575,2]
[312212291,1705686664829,-9950.98,0.00026575,2]
[312212292,1705686664839,-500.0,0.00026575,2]
[312212293,1705686664848,-500.0,0.00026575,2]
[312212294,1705686664858,-987.74,0.00026575,2]
[312212295,1705686664867,-500.0,0.00026575,2]
[312212296,1705686664876,-1289.54,0.00026575,2]
[312212297,1705686664885,-500.0,0.00026575,2]
[312212298,1705686664896,-407.75,0.00026575,2]
[312212299,1705686664905,-467.34,0.00026575,2]
[312212300,1705686664915,-500.0,0.00026575,2]
[312212301,1705686664924,-500.0,0.00026575,2]
[312212302,1705686664935,-500.0,0.00026575,2]
[312212303,1705686664945,-500.0,0.00026575,2]
[312212304,1705686664954,-2071.27,0.00026575,2]
[312212305,1705686664964,-500.0,0.00026575,5]
[312212306,1705686664976,-1028.3,0.00026575,2]
[312212307,1705686664986,-500.0,0.00026575,2]
[312212308,1705686664995,-500.0,0.00026575,2]
[312212309,1705686665005,-1821.35,0.00026575,2]
[312212310,1705686665017,-500.0,0.00026575,2]
[312212311,1705686665026,-500.0,0.00026575,2]
[312212312,1705686665035,-2515.39,0.00026575,2]
[312212313,1705686665045,-500.0,0.00026575,2]
[312212314,1705686665055,-579.57,0.00026575,2]
[312212315,1705686665065,-789.05,0.00026575,2]
[312212316,1705686665076,-1481.48,0.00026575,2]
[312212317,1705686665086,-500.0,0.00026575,2]
[312212318,1705686665096,-500.0,0.00026575,2]
[312212319,1705686665106,-694.61,0.00026575,2]
[312212320,1705686665116,-500.0,0.00026575,2]
[312212321,1705686665126,-767.99,0.00026575,2]
[312212322,1705686665136,-704.29,0.00026575,2]
[312212323,1705686665145,-500.0,0.00026575,2]
[312212324,1705686665155,-500.0,0.00026575,2]
[312212325,1705686665165,-500.0,0.00026575,2]
[312212326,1705686665175,-500.0,0.00026575,2]
[312212327,1705686665185,-1105.0,0.00026575,2]
[312212328,1705686665195,-500.0,0.00026575,2]
[312212329,1705686665204,-500.0,0.00026575,2]
[312212330,1705686665214,-1937.21,0.00026575,2]
[312212331,1705686665224,-802.6,0.00026575,2]
[312212332,1705686665234,-565.57,0.00026575,2]
[312212333,1705686665244,-1124.46,0.00026575,2]
[312212334,1705686665254,-500.0,0.00026575,2]
[312212335,1705686665266,-1388.65,0.00026575,2]
[312212336,1705686665275,-500.0,0.00026575,2]
[312212337,1705686665284,-500.0,0.00026575,2]
[312212338,1705686665294,-500.0,0.00026575,2]
[312212339,1705686665303,-3080.21,0.00026575,2]
[312212340,1705686665313,-2102.34,0.00026575,2]
[312212341,1705686665323,-719.6,0.00026575,2]
[312212342,1705686665334,-28019.83,0.00026575,2]
[312212343,1705686665343,-179.01242334,0.00026615,2]
[312212344,1705686665353,-150.0,0.00026631,2]
[312212345,1705686665363,-520.88,0.00026657,2]
[312212346,1705686665373,-151.9905901,0.00026699,2]
[312212347,1705686665383,-776.10323469,0.000267,2]
[312212348,1705686665393,-167.0,0.00026703,2]
[312212349,1705686665403,-1000.0,0.00026738,3]
[312212350,1705686665412,-1000.0,0.00026738,3]
[312212351,1705686665422,-1000.0,0.00026738,3]
[312212352,1705686665431,-1000.0,0.00026738,3]
[312212353,1705686665441,-1000.0,0.00026738,3]
[312212354,1705686665451,-179.01242334,0.00026803,2]
[312212355,1705686665461,-500.0,0.00026847,2]
[312212356,1705686665470,-500.0,0.00026848,2]
[312212357,1705686665480,-631.9,0.00026848,2]
[312212358,1705686665489,-500.0,0.00026849,2]
[312212359,1705686665498,-500.0,0.00026849,2]
[312212360,1705686665508,-500.0,0.00026849,2]
[312212361,1705686665519,-500.0,0.00026849,2]
[312212362,1705686665529,-500.0,0.00026849,2]
[312212363,1705686665539,-1692.61,0.00026849,2]
[312212364,1705686665548,-295.49,0.00026849,2]
[312212365,1705686665558,-500.0,0.00026849,2]
[312212366,1705686665567,-500.0,0.00026849,2]
[312212367,1705686665577,-500.0,0.00026849,2]
[312212368,1705686665586,-500.0,0.00026849,2]
[312212369,1705686665595,-500.0,0.00026849,2]
[312212370,1705686665605,-500.0,0.00026849,2]
[312212371,1705686665614,-577.97,0.00026849,2]
[312212372,1705686665624,-500.0,0.00026849,2]
[312212373,1705686665634,-612.78,0.00026849,2]
[312212374,1705686665644,-676.46,0.00026849,2]
[312212375,1705686665654,-683.83,0.00026849,2]
[312212376,1705686665663,-200.36048827,0.00026849,2]
[312212377,1705686665671,-548.83,0.00026849,2]
[312212378,1705686665681,-500.0,0.00026849,2]
[312212379,1705686665691,-500.0,0.00026849,2]
[312212380,1705686665700,-233.13,0.00026849,2]
[312212381,1705686665710,-500.0,0.00026849,2]
[312212382,1705686665719,-500.0,0.00026849,2]
[312212383,1705686665729,-500.0,0.00026849,2]
[312212384,1705686665738,-500.0,0.00026849,2]
[312212385,1705686665748,-500.0,0.00026849,2]
[312212386,1705686665758,-500.0,0.00026849,2]
[312212387,1705686665769,-851.92,0.00026849,2]
[312212388,1705686665779,-500.0,0.00026849,2]
[312212389,1705686665788,-1965.01,0.00026849,2]
[312212390,1705686665798,-607.77,0.00026849,2]
[312212391,1705686665808,-1613.64,0.00026849,2]
[312212392,1705686665817,-1700.28,0.00026849,2]
[312212393,1705686665828,-9950.98,0.00026849,2]
[312212394,1705686665838,-500.0,0.00026849,2]
[312212395,1705686665848,-500.0,0.00026849,2]
[312212396,1705686665858,-987.74,0.00026849,2]
[312212397,1705686665867,-500.0,0.00026849,2]
[312212398,1705686665878,-1289.54,0.00026849,2]
[312212399,1705686665889,-500.0,0.00026849,2]
[312212400,1705686665902,-500.0,0.00026849,2]
[312212401,1705686665913,-500.0,0.00026849,2]
[312212402,1705686665923,-500.0,0.00026849,2]
[312212403,1705686665934,-500.0,0.00026849,2]
[312212404,1705686665943,-2071.27,0.00026849,2]
[312212405,1705686665953,-500.0,0.00026849,5]
[312212406,1705686665963,-1028.3,0.00026849,2]
[312212407,1705686665973,-500.0,0.00026849,2]
[312212408,1705686665984,-500.0,0.00026849,2]
[312212409,1705686665994,-1821.35,0.00026849,2]
[312212410,1705686666004,-500.0,0.00026849,2]
[312212411,1705686666015,-500.0,0.00026849,2]
[312212412,1705686666025,-2515.39,0.00026849,2]
[312212413,1705686666034,-289.74,0.00026849,2]
[312212414,1705686666044,-579.57,0.00026849,2]
[312212415,1705686666054,-789.05,0.00026849,2]
[312212416,1705686666063,-1481.48,0.00026849,2]
[312212417,1705686666074,-304.81,0.00026849,2]
[312212418,1705686666084,-500.0,0.00026849,2]
[312212419,1705686666093,-694.61,0.00026849,2]
[312212420,1705686666102,-500.0,0.00026849,2]
[312212421,1705686666112,-767.99,0.00026849,2]
[312212422,1705686666122,-704.29,0.00026849,2]
[312212423,1705686666132,-500.0,0.00026849,2]
[312212424,1705686666141,-500.0,0.00026849,2]
[312212425,1705686666151,-500.0,0.00026849,2]
[312212426,1705686666161,-500.0,0.00026849,2]
[312212427,1705686666170,-1105.0,0.00026849,2]
[312212428,1705686666180,-398.39392506,0.00026849,2]
[312212429,1705686666189,-500.0,0.00026849,2]
[312212430,1705686666198,-1937.21,0.00026849,2]
[312212431,1705686666208,-802.6,0.00026849,2]
[312212432,1705686666218,-565.57,0.00026849,2]
[312212433,1705686666228,-1124.46,0.00026849,2]
[312212434,1705686666237,-500.0,0.00026849,2]
[312212435,1705686666246,-1388.65,0.00026849,2]
[312212436,1705686666256,-500.0,0.00026849,2]
[312212437,1705686666266,-500.0,0.00026849,2]
[312212438,1705686666275,-500.0,0.00026849,2]
[312212439,1705686666284,-3080.21,0.00026849,2]
[312212440,1705686666293,-2102.34,0.00026849,2]
[312212441,1705686666302,-1128.60406188,0.00026849,2]
[312212442,1705686666312,-179.01242334,0.00026992,2]
[312212443,1705686666322,-155.0,0.00027,2]
[312212444,1705686666331,-5000.0,0.00027,2]
[312212445,1705686666340,-416.88601453,0.00027,2]
[312212446,1705686666350,-5195.68599,0.00027,2]
[312212447,1705686666359,-150.0,0.00027016,2]
[312212448,1705686666368,-196.40770513,0.00027064,3]
[312212449,1705686666378,-2514.74234936,0.00027064,3]
[312212450,1705686666387,-1532.02081678,0.00027064,3]
[312212451,1705686666397,-356.01685743,0.00027064,3]
[312212452,1705686666406,-2362.52547301,0.00027064,3]
[312212453,1705686666415,-1561.31671621,0.00027064,3]
[312212454,1705686666669,-1247.01489747,0.00027064,3]
[312212455,1705686666684,-495.86931459,0.00027064,3]
[312212456,1705686666696,-8816.53773194,0.00027064,3]
[312212457,1705686666706,-2625.98767255,0.00027064,3]
[312212458,1705686666715,-3831.21444445,0.00027064,3]
[312212459,1705686666724,-862.02325,0.00027064,3]
[312212460,1705686666734,-2273.55142952,0.00027064,3]
[312212461,1705686666743,-218.12501453,0.00027064,3]
[312212462,1705686666753,-4990.65789454,0.00027064,3]
[312212463,1705686666763,-1672.77057164,0.00027064,3]
[312212464,1705686666773,-1000.0,0.00027064,3]
[312212465,1705686666782,-1035.00007614,0.00027082,2]
[312212466,1705686666791,-156.92,0.00027101,2]
[312212467,1705686666800,-500.0,0.00027123,2]
[312212468,1705686666810,-500.0,0.00027123,2]
[312212469,1705686666819,-500.0,0.00027123,2]
[312212470,1705686666828,-500.0,0.00027123,2]
[312212471,1705686666837,-500.0,0.00027123,2]
[312212472,1705686666847,-1692.61,0.00027123,2]
[312212473,1705686666856,-500.0,0.00027123,2]
[312212474,1705686666865,-500.0,0.00027123,2]
[312212475,1705686666874,-500.0,0.00027123,2]
[312212476,1705686666884,-192.21318239,0.00027123,2]
[312212477,1705686666895,-500.0,0.00027123,2]
[312212478,1705686666905,-500.0,0.00027123,2]
[312212479,1705686666914,-577.97,0.00027123,2]
[312212480,1705686666926,-500.0,0.00027123,2]
[312212481,1705686666935,-612.78,0.00027123,2]
[312212482,1705686666944,-676.46,0.00027123,2]
[312212483,1705686666958,-683.83,0.00027123,2]
[312212484,1705686666967,-548.83,0.00027123,2]
[312212485,1705686666982,-500.0,0.00027123,2]
[312212486,1705686666997,-296.18,0.00027123,2]
[312212487,1705686667007,-500.0,0.00027123,2]
[312212488,1705686667034,-500.0,0.00027123,2]
[312212489,1705686667049,-500.0,0.00027123,2]
[312212490,1705686667065,-500.0,0.00027123,2]
[312212491,1705686667078,-500.0,0.00027123,2]
[312212492,1705686667089,-500.0,0.00027123,2]
[312212493,1705686667099,-851.92,0.00027123,2]
[312212494,1705686667121,-500.0,0.00027123,2]
[312212495,1705686667133,-1965.01,0.00027123,2]
[312212496,1705686667143,-607.77,0.00027123,2]
[312212497,1705686667154,-1613.64,0.00027123,2]
[312212498,1705686667165,-1700.28,0.00027123,2]
[312212499,1705686667175,-9950.98,0.00027123,2]
[312212500,1705686667187,-500.0,0.00027123,2]
[312212501,1705686667196,-500.0,0.00027123,2]
[312212502,1705686667206,-987.74,0.00027123,2]
[312212503,1705686667215,-500.0,0.00027123,2]
[312212504,1705686667225,-1289.54,0.00027123,2]
[312212505,1705686667236,-500.0,0.00027123,2]
[312212506,1705686667246,-500.0,0.00027123,2]
[312212507,1705686667258,-508.04695815,0.00027123,2]
[312212508,1705686667269,-500.0,0.00027123,2]
[312212509,1705686667280,-500.0,0.00027123,2]
[312212510,1705686667292,-2071.27,0.00027123,2]
[312212511,1705686667302,-1028.3,0.00027123,2]
[312212512,1705686667318,-500.0,0.00027123,5]
[312212513,1705686667335,-500.0,0.00027123,2]
[312212514,1705686667364,-500.0,0.00027123,2]
[312212515,1705686667377,-1821.35,0.00027123,2]
[312212516,1705686667408,-500.0,0.00027123,2]
[312212517,1705686667419,-524.86,0.00027123,2]
[312212518,1705686667439,-2515.39,0.00027123,2]
[312212519,1705686667452,-579.57,0.00027123,2]
[312212520,1705686667482,-789.05,0.00027123,2]
[312212521,1705686667503,-1481.48,0.00027123,2]
[312212522,1705686667515,-559.35,0.00027123,2]
[312212523,1705686667539,-694.61,0.00027123,2]
[312212524,1705686667549,-500.0,0.00027123,2]
[312212525,1705686667568,-767.99,0.00027123,2]
[312212526,1705686667601,-704.29,0.00027123,2]
[312212527,1705686667625,-500.0,0.00027123,2]
[312212528,1705686667646,-371.61923136,0.00027123,2]
[312212529,1705686667696,-128.38076864,0.00027123,2]
[312212530,1705686667707,-253.61,0.00027123,2]
[312212531,1705686667723,-500.0,0.00027123,2]
[312212532,1705686667740,-514.09343136,0.00027123,2]
[312212533,1705686667754,-590.90656864,0.00027123,2]
[312212534,1705686667764,-500.0,0.00027123,2]
[312212535,1705686667777,-1937.21,0.00027123,2]
[312212536,1705686667788,-802.6,0.00027123,2]
[312212537,1705686667798,-565.57,0.00027123,2]
[312212538,1705686667810,-1002.62963869,0.00027123,2]
[312212539,1705686667824,-121.83036131,0.00027123,2]
[312212540,1705686667834,-500.0,0.00027123,2]
[312212541,1705686667844,-1388.65,0.00027123,2]
[312212542,1705686667853,-500.0,0.00027123,2]
[312212543,1705686667863,-347.93,0.00027123,2]
[312212544,1705686667873,-500.0,0.00027123,2]
[312212545,1705686667884,-3080.21,0.00027123,2]
[312212546,1705686667893,-2102.34,0.00027123,2]
[312212547,1705686667903,-179.01242334,0.00027181,2]
[312212548,1705686667913,-1555.02721535,0.000272,2]
[312212549,1705686667925,-1822.7377368,0.000272,2]
[312212550,1705686667936,-1603.789298,0.000272,2]
[312212551,1705686667946,-2718.69916384,0.000272,2]
[312212574,1705686851415,370.61195692,0.0002,2]
[312212575,1705686851441,129.38804208,0.0002,2]
[312212578,1705686869046,722.21551038,0.0003,120]
[312212618,1705687831456,-247.18324374,0.00020701,2]
[312212619,1705687831465,-167.85577029,0.00020702,2]
[312212620,1705687831477,-98.36076531,0.00020702,2]
[312212621,1705687831488,-2020.91899036,0.00020703,2]
[312212622,1705687831498,-465.21,0.00020706,2]
[312212623,1705687831508,-155.38842139,0.000218,2]
[312212624,1705687831517,-181.90103038,0.000219,2]
[312212625,1705687831529,-68.09896962,0.000219,2]
[312212626,1705687831538,-155.38842129,0.00022121,2]
[312212627,1705687831547,-142.79260909,0.00022442,2]
[312212628,1705687831558,-12.5958122,0.00022442,2]
[312212629,1705687831568,-2000.0,0.0002246,2]
[312212630,1705687831577,-158.38,0.00022477,2]
[312212631,1705687831586,-794.73,0.00022477,2]
[312212632,1705687831595,-286.66,0.00022612,2]
[312212633,1705687831604,-171.08,0.00022612,2]
[312212634,1705687831614,-176.74,0.00022712,2]
[312212635,1705687831623,-150.4,0.00022747,2]
[312212636,1705687831633,-250.0,0.00022747,2]
[312212637,1705687831642,-155.38842129,0.00022763,2]
[312212638,1705687831651,-250.0,0.0002277,2]
[312212639,1705687831661,-1000.0,0.0002277,2]
[312212640,1705687831670,-150.0,0.00022835,2]
[312212641,1705687831679,-1485.17,0.00022836,2]
[312212642,1705687831689,-151.51,0.00022866,2]
[312212643,1705687831698,-465.21,0.0002297,2]
[312212644,1705687831707,-722.45,0.00022998,2]
[312212645,1705687831716,-149.28330978,0.00023,2]
[312212646,1705687831728,-5.80669022,0.00023,2]
[312212647,1705687831737,-1008.11171313,0.00023014,20]
[312212648,1705687831747,-151.51,0.00023015,2]
[312212649,1705687831756,-155.38842129,0.00023084,2]
[312212650,1705687831765,-151.51,0.00023164,2]
[312212651,1705687831774,-151.51,0.00023313,2]
[312212652,1705687831784,-150.99,0.00023386,2]
[312212653,1705687831793,-155.38842129,0.00023405,2]
[312212655,1705687831802,-158.38,0.00023455,2]
[312212657,1705687831811,-89.21200704,0.00023462,2]
[312212659,1705687831822,-62.29799296,0.00023462,2]
[312212661,1705687831832,-171.16,0.00023476,2]
[312212663,1705687831841,-687.257,0.00023498,2]
[312212665,1705687831849,-155.0,0.00023498,2]
[312212667,1705687831858,-2046.09650854,0.000235,3]
[312212669,1705687831869,-1516.1884985,0.000235,3]
[312212672,1705687831885,-6009.02095026,0.000235,3]
[312212674,1705687831896,-927.34,0.000235,3]
[312212676,1705687831907,-422.93054561,0.000235,3]
[312212679,1705687831918,-2055.44954774,0.000235,3]
[312212681,1705687831929,-625.07888691,0.000235,3]
[312212683,1705687831940,-816.55749278,0.000235,3]
[312212686,1705687831952,-2065.45835351,0.000235,3]
[312212688,1705687831967,-7544.91301688,0.000235,3]
[312212691,1705687831982,-3522.43972882,0.000235,3]
[312212693,1705687831991,-155.17,0.00023572,2]
[312212695,1705687832000,-151.51,0.00023611,2]
[312212697,1705687832010,-2181.0,0.00023685,2]
[312212699,1705687832019,-155.38842129,0.00023726,2]
[312212701,1705687832028,-151.51,0.0002376,2]
[312212703,1705687832037,-151.51,0.00023909,2]
[312212705,1705687832046,-150.0,0.00023945,2]
[312212707,1705687832055,-431.59040182,0.00024,2]
[312212709,1705687832064,-201.16205573,0.00024,2]
[312212711,1705687832074,-499.99,0.00024,2]
[312212713,1705687832084,-171.16,0.0002404,2]
[312212715,1705687832094,-155.38842129,0.00024047,2]
[312212717,1705687832102,-151.51,0.00024058,2]
[312212719,1705687832111,-151.9905901,0.00024106,2]
[312212721,1705687832121,-5367.4197,0.00024106,2]
[312212723,1705687832130,-1000.0,0.00024106,2]
[312212725,1705687832139,-17270.361,0.00024106,2]
[312212727,1705687832148,-267229.2984,0.00024106,2]
[312212729,1705687832157,-2500.0,0.00024106,2]
[312212731,1705687832166,-155.0,0.00024106,2]
[312212733,1705687832175,-150.0,0.00024206,2]
[312212735,1705687832184,-1000.0,0.00024206,2]
[312212737,1705687832193,-71465.76820479,0.00024206,2]
[312212740,1705687832216,-1381.7786119,0.00024206,2]
[312212743,1705687832227,-8294.70286994,0.00024206,2]
[312212745,1705687832239,-4968.72288603,0.00024206,2]
[312212840,1705687837457,-150.0,0.00023,2]
[312212841,1705687837467,-4850.0,0.00024206,2]
[312212842,1705687837478,-469.39744371,0.00024206,2]
[312212843,1705687837538,-18202.50842697,0.00024206,2]
[312212844,1705687837550,-1385.73435,0.00024206,2]
[312212845,1705687837576,-334.7219077,0.00024206,2]
[312212846,1705687837587,-878.33756112,0.00024206,2]
[312212847,1705687837635,-500.0,0.00024206,2]
[312212848,1705687837647,-274.06673411,0.00024206,2]
[312212849,1705687837658,-1362.44103371,0.00024206,2]
[312212850,1705687837669,-5609.169647,0.00024206,2]
[312212851,1705687837696,-40382.6950797,0.00024206,2]
[312212852,1705687837707,-2825.84301685,0.00024206,2]
[312212853,1705687837719,-871.4711906,0.00024206,2]
[312212854,1705687837756,-1520.079,0.00024206,2]
[312212855,1705687837768,-4186.816101,0.00024206,2]
[312212856,1705687837816,-613.02158694,0.00024206,2]
[312212857,1705687837827,-358.48667185,0.00024206,2]
[312212858,1705687837839,-305.74211855,0.00024206,2]
[312212859,1705687837850,-15635.1845091,0.00024206,2]
[312213016,1705687840020,-20147.13664843,0.00024206,2]
[312213017,1705687840030,-483.7488,0.00024206,2]
[312213018,1705687840039,-155.38842129,0.00024368,2]
[312213019,1705687840048,-150.4,0.0002443,2]
[312213020,1705687840057,-1090.20781989,0.00024432,2]
[312213021,1705687840066,-158.38,0.00024434,2]
[312213022,1705687840074,-197.10559229,0.00024447,2]
[312213023,1705687840084,-1215.6672,0.00024457,2]
[312213024,1705687840093,-59957.01070789,0.00024457,2]
[312213025,1705687840110,-263.755,0.00024457,2]
[312213026,1705687840122,-382.66701141,0.00024457,2]
[312213027,1705687840137,-1237.0405218,0.00024457,2]
[312213028,1705687840149,-402.42999289,0.00024457,2]
[312213029,1705687840166,-37757.09676601,0.00024457,2]
[312213030,1705687840176,-4742.36023399,0.00024457,2]
[312213031,1705687840187,-3041.03947867,0.00024457,2]
[312213032,1705687840266,-11415.49810121,0.00024457,2]
[312213050,1705687842448,-4938.40539427,0.00024457,2]
[312213051,1705687842510,-420.46004682,0.00024457,2]
[312213052,1705687842521,-5686.21378334,0.00024457,2]
[312213053,1705687842572,-17553.8927475,0.00024457,2]
[312213054,1705687842583,-6849.09225,0.00024457,2]
[312213055,1705687842594,-14746.34780139,0.00024457,2]
[312213056,1705687842649,-960.767779,0.00024457,2]
[312213057,1705687842660,-785.7682686,0.00024457,2]
[312213058,1705687842672,-842.97427121,0.00024457,2]
[312213059,1705687842683,-1317.5917174,0.00024457,2]
[312213060,1705687842773,-497.47766596,0.00024457,2]
[312213061,1705687842785,-55624.75046064,0.00024457,2]
[312213062,1705687842794,-214.0,0.00024468,2]
[312213063,1705687842804,-969.679,0.00024468,2]
[312213064,1705687842813,-426.0,0.00024468,2]
[312213065,1705687842822,-235.0,0.00024468,2]
[312213066,1705687842831,-553.883,0.00024468,2]
[312213068,1705687842841,-209.0,0.00024557,2]
[312213070,1705687842850,-171.16,0.00024603,2]
[312213072,1705687842859,-180.0,0.00024636,2]
[312213074,1705687842869,-1963.97407621,0.00024656,2]
[312213076,1705687842878,-500.0,0.00024657,2]
[312213078,1705687842888,-268.86332655,0.00024657,2]
[312213079,1705687842897,-648.21,0.00024657,2]
[312213080,1705687842906,-500.0,0.00024657,2]
[312213081,1705687842915,-500.0,0.00024657,2]
[312213082,1705687842925,-500.0,0.00024657,2]
[312213083,1705687842934,-500.0,0.00024657,2]
[312213084,1705687842943,-500.0,0.00024657,2]
[312213085,1705687842953,-500.0,0.00024657,2]
[312213086,1705687842963,-500.0,0.00024657,2]
[312213087,1705687842972,-500.0,0.00024657,2]
[312213088,1705687842980,-500.0,0.00024657,2]
[312213089,1705687842990,-500.0,0.00024657,2]
[312213091,1705687842999,-500.0,0.00024657,2]
[312213093,1705687843008,-500.0,0.00024657,2]
[312213094,1705687843017,-500.0,0.00024657,2]
[312213095,1705687843026,-500.0,0.00024657,2]
[312213096,1705687843035,-500.0,0.00024657,2]